bitfinex/quotes_ETHUSD_20250807
["timestamp","ask_amount","ask_price","bid_price","bid_amount"]
[1754577472380,4.252,3825.7,3825.6,2.61396905]
[1754577472570,4.252,3825.7,3825.6,2.74436905]
[1754577473083,4.251,3826.0,3825.7,2.61390072]
[1754577473592,4.7017,3826.0,3825.6,2.74434757]
[1754577473883,4.7154,3826.0,3825.6,2.74434757]
[1754577474082,0.4507,3825.9,3825.7,2.61389929]
[1754577474281,0.4644,3825.9,3825.6,0.1304]
[1754577474486,0.9151,3825.8,3825.6,0.1304]
[1754577474770,4.30691346,3825.8,3824.7,3.0]
[1754577474950,4.30691346,3825.8,3825.3,0.1304]
[1754577474951,4.43731346,3825.8,3825.3,0.1304]
[1754577475151,0.9151,3825.7,3825.3,0.1304]
[1754577475358,4.4353146,3825.6,3825.2,0.1304]
[1754577475551,0.9151,3825.5,3825.2,0.1304]
[1754577475959,4.4353146,3825.6,3824.7,5.61451619]
[1754577475960,3.52925577,3825.4,3824.7,5.61451619]
[1754577476184,3.09822717,3825.4,3825.0,0.1304]
[1754577476473,3.54895537,3825.3,3824.6,2.61464541]
[1754577476674,4.25,3825.2,3825.0,0.001]
[1754577476870,5.1651,3825.2,3825.0,0.001]
[1754577477875,0.002,3826.3,3825.1,3.9156]
[1754577478061,0.002,3826.3,3825.7,2.61389901]
[1754577478321,4.25,3826.1,3825.7,2.61389901]
[1754577478769,0.0196714,3826.0,3825.1,0.9156]
[1754577478970,4.25,3826.1,3825.1,0.9156]
[1754577479172,0.0216714,3825.9,3825.6,2.61391917]
[1754577479377,0.002,3825.9,3825.8,2.6138324]
[1754577479741,0.002,3825.9,3825.1,0.9156]
[1754577479942,0.4805,3825.9,3825.6,2.61395613]
[1754577480147,0.9368,3825.9,3825.1,0.4643]
[1754577480474,0.9564714,3825.9,3825.6,2.61392116]
[1754577480676,0.9368,3825.9,3825.6,2.61392116]
[1754577481174,0.002,3825.9,3825.7,2.61389963]
[1754577481382,0.002,3825.9,3825.7,2.61389504]
[1754577481546,0.002,3825.9,3825.1,0.4643]
[1754577481750,0.002,3825.9,3825.5,2.61402016]
[1754577482077,0.002,3825.9,3825.4,2.6140834]
[1754577482278,0.002,3825.9,3825.1,3.4643]
[1754577482478,0.002,3825.9,3825.5,2.61399221]
[1754577482681,0.002,3825.9,3825.3,2.61415818]
[1754577482977,0.002,3825.9,3825.4,2.61409504]
[1754577483173,0.002,3825.9,3825.1,3.4643]
[1754577483174,0.002,3825.9,3825.5,2.61403706]
[1754577483576,0.002,3825.9,3825.6,2.61396541]
[1754577483780,0.002,3825.9,3825.5,2.61398091]
[1754577483978,0.002,3825.9,3825.1,0.4643]
[1754577483979,0.002,3825.9,3825.3,2.61414489]
[1754577484148,0.002,3825.9,3825.5,2.61403411]
[1754577484479,0.002,3825.9,3825.3,3.0]
[1754577484672,0.002,3825.9,3825.8,18.70554408]
[1754577485243,0.002,3825.9,3825.8,19.60674408]
[1754577485651,0.002,3826.3,3826.2,5.61355914]
[1754577486182,0.002,3826.3,3826.2,6.51475914]
[1754577487176,0.002,3826.3,3826.2,8.11367559]
[1754577487980,0.002,3826.3,3826.2,14.88337659]
[1754577488386,0.002,3826.3,3826.2,13.69960359]
[1754577488551,0.002,3826.3,3826.2,12.86356559]
[1754577488754,0.002,3826.3,3826.2,13.18920159]
[1754577489178,0.002,3826.7,3826.5,2.61335424]
[1754577489481,0.002,3826.7,3826.5,19.97619946]
[1754577489681,0.002,3826.7,3826.5,20.08046592]
[1754577489885,0.002,3826.7,3826.6,14.74656194]
[1754577489886,1e-08,3826.7,3826.6,14.74656194]
[1754577490052,1e-08,3826.7,3826.6,20.17978259]
[1754577490255,0.002,3827.8,3827.7,2.61253494]
[1754577490475,0.002,3827.8,3827.7,9.98793494]
[1754577490675,0.002,3827.8,3827.7,10.43993494]
[1754577490986,0.002,3827.8,3827.7,10.88913494]
[1754577491186,0.002,3828.2,3828.1,5.61226195]
[1754577491380,0.002,3828.2,3828.1,23.1445598]
[1754577491555,0.002,3828.2,3828.1,23.5965598]
[1754577491751,0.002,3828.2,3828.1,24.0457598]
[1754577491976,0.002,3828.2,3828.1,25.78937996]
[1754577492174,0.002,3828.2,3828.1,25.91977996]
[1754577492485,0.002,3828.2,3828.1,11.92686828]
[1754577492691,0.002,3828.2,3828.1,10.18324812]
[1754577493558,0.002,3828.2,3828.1,24.1761598]
[1754577493877,0.9348,3829.5,3828.2,5.61219372]
[1754577494073,0.9348,3829.5,3828.2,6.51339372]
[1754577494272,0.002,3829.0,3828.2,9.197273]
[1754577494657,0.002,3829.0,3828.2,8.296073]
[1754577494857,0.4785,3828.8,3828.2,9.85419372]
[1754577496186,0.4563,3828.9,3828.2,9.85419372]
[1754577496370,0.4785,3828.8,3828.2,9.85419372]
[1754577497411,0.002,3829.0,3828.2,11.30539372]
[1754577498893,0.002,3829.0,3828.2,10.75539372]
[1754577499412,0.4785,3828.9,3828.2,9.85219372]
[1754577499864,0.4785,3828.9,3828.2,9.85119372]
[1754577500068,0.4785,3828.6,3828.2,9.85119372]
[1754577500319,0.4785,3828.6,3828.2,5.61219372]
[1754577500609,0.9368,3828.3,3828.2,5.61219372]
[1754577500865,0.002,3828.3,3828.2,9.85119372]
[1754577500980,0.002,3828.3,3828.2,24.22195137]
[1754577501182,0.002,3828.3,3828.2,25.12315137]
[1754577501488,0.002,3829.0,3828.9,5.61171615]
[1754577501695,0.002,3829.0,3828.9,22.94242783]
[1754577501893,0.002,3829.0,3828.9,23.07282783]
[1754577502102,0.002,3829.0,3828.9,26.54249051]
[1754577502103,1e-08,3829.0,3828.9,26.54249051]
[1754577502600,1e-08,3829.0,3828.9,26.09329051]
[1754577502801,1e-08,3829.0,3828.9,25.64129051]
[1754577503123,1e-08,3829.0,3828.9,9.98011615]
[1754577503302,1e-08,3829.0,3828.9,10.43211615]
[1754577503507,1e-08,3829.0,3828.9,9.98011615]
[1754577503916,1e-08,3829.0,3828.9,10.43211615]
[1754577504084,1e-08,3829.0,3828.9,9.97911615]
[1754577505327,1e-08,3829.0,3828.9,11.69020766]
[1754577505913,1e-08,3829.0,3828.9,7.00120766]
[1754577506097,1e-08,3829.0,3828.9,9.97911615]
[1754577506296,1e-08,3829.0,3828.9,5.74211615]
[1754577506515,1e-08,3829.0,3828.9,9.97811615]
[1754577508813,1e-08,3829.0,3828.9,5.74211615]
[1754577509017,1e-08,3829.0,3828.9,9.97811615]
[1754577509234,0.95850001,3829.0,3828.9,3.1304]
[1754577509530,0.95850001,3829.0,3828.9,5.74211615]
[1754577509903,1e-08,3829.0,3828.9,5.74211615]
[1754577510085,1e-08,3829.0,3828.9,6.87061194]
[1754577510287,1e-08,3829.0,3828.9,7.00101194]
[1754577510505,1e-08,3829.0,3828.9,7.45491194]
[1754577510710,1e-08,3829.0,3828.9,7.32451194]
[1754577510917,1e-08,3829.0,3828.9,7.45491194]
[1754577511726,1e-08,3829.0,3828.9,11.10461194]
[1754577511920,0.48680001,3829.0,3828.9,9.84571615]
[1754577512125,0.95850001,3829.0,3828.9,5.61171615]
[1754577512333,0.95850001,3829.0,3828.9,9.84571615]
[1754577512503,0.95850001,3829.0,3828.9,5.61171615]
[1754577513514,1e-08,3829.0,3828.9,5.61171615]
[1754577513718,1e-08,3829.0,3828.9,11.09147194]
[1754577514728,1e-08,3829.0,3828.9,11.54537194]
[1754577515030,1e-08,3829.0,3828.9,11.98117194]
[1754577515235,1e-08,3829.4,3829.3,2.61144334]
[1754577515389,1e-08,3829.4,3829.3,22.93615502]
[1754577515594,1e-08,3829.4,3829.3,30.11250786]
[1754577516090,1e-08,3829.4,3829.3,25.53892486]
[1754577516527,1e-08,3829.4,3829.3,8.21421318]
[1754577516744,0.95850001,3829.4,3829.3,5.61144334]
[1754577517755,0.95850001,3829.4,3828.1,0.19758617]
[1754577518033,0.95850001,3829.4,3828.1,0.001]
[1754577518034,2.61157974,3829.1,3828.1,0.001]
[1754577518188,15.35487937,3829.0,3828.1,0.001]
[1754577518391,2.61193395,3828.6,3828.1,0.001]
[1754577518615,2.61183243,3828.8,3828.1,2.61321901]
[1754577518810,1.51041347,3828.7,3828.1,0.001]
[1754577519002,0.9585,3828.7,3828.1,2.61322931]
[1754577519304,0.9781714,3828.6,3828.1,0.001]
[1754577519504,1.23484062,3828.6,3828.1,0.001]
[1754577519714,0.9585,3828.5,3828.1,0.001]
[1754577520116,0.9585,3828.4,3828.1,0.001]
[1754577520306,0.9585,3828.9,3828.1,0.001]
[1754577520508,0.4717,3828.9,3828.5,2.61197045]
[1754577520708,0.4868,3829.3,3828.4,2.61205725]
[1754577520907,0.4868,3829.3,3828.9,2.61168507]
[1754577521108,0.9585,3829.2,3828.3,4.96870093]
[1754577521329,0.4868,3829.1,3828.3,4.96870093]
[1754577521530,0.4868,3829.1,3829.0,2.61164794]
[1754577521908,0.4868,3829.1,3828.7,2.61185043]
[1754577521909,0.9585,3829.1,3828.8,2.61172056]
[1754577522096,0.9585,3829.0,3828.7,2.61183989]
[1754577522304,0.9585,3828.9,3828.8,2.61178423]
[1754577522703,0.4868,3829.2,3828.9,2.61169655]
[1754577522936,0.9585,3829.1,3828.8,0.1304]
[1754577523235,0.9585,3829.0,3828.8,2.74217847]
[1754577523455,0.9585,3828.9,3828.8,0.1304]
[1754577524805,0.9585,3828.9,3828.6,2.61191874]
[1754577525000,2.3512648,3829.4,3828.6,0.1304]
[1754577525001,5.1885,3828.8,3828.6,0.1304]
[1754577525430,0.9585,3828.7,3828.6,0.1304]
[1754577525944,0.9781714,3828.7,3828.1,0.001]
[1754577526240,2.61219372,3828.2,3828.1,0.001]
[1754577526418,2.63186512,3828.2,3828.1,0.001]
[1754577526735,18.09036512,3828.2,3828.1,0.001]
[1754577526902,18.07069372,3828.2,3828.1,0.001]
[1754577527643,18.62335202,3828.2,3828.1,0.001]
[1754577527821,23.80384147,3828.2,3828.1,0.001]
[1754577528024,23.25118317,3828.2,3828.1,0.001]
[1754577528410,16.40998945,3828.2,3828.1,0.001]
[1754577528606,19.6875,3828.2,3828.1,0.001]
[1754577529023,5.1875,3828.2,3828.1,0.001]
[1754577529432,0.9585,3828.2,3828.1,0.001]
[1754577529632,0.4868,3828.6,3828.1,0.001]
[1754577529842,4.7158,3828.2,3828.1,0.001]
[1754577530039,5.1875,3828.2,3828.1,0.001]
[1754577530240,4.229,3828.2,3828.1,2.61326195]
[1754577530440,5.1875,3828.2,3828.1,0.001]
[1754577530643,4.229,3828.2,3828.1,0.001]
[1754577532045,1.10955993,3828.6,3828.1,0.001]
[1754577532249,4.229,3828.5,3828.1,0.001]
[1754577532544,4.229,3828.5,3828.2,2.6121862]
[1754577532745,4.228,3828.4,3828.3,2.6121208]
[1754577533122,0.9585,3828.6,3828.1,0.001]
[1754577533321,4.228,3828.5,3828.3,2.61207425]
[1754577533734,0.4868,3828.6,3828.4,2.61205725]
[1754577534050,4.228,3828.5,3828.4,2.61205725]
[1754577534847,4.228,3828.5,3828.3,2.61212125]
[1754577535435,4.228,3828.5,3828.1,2.6132026]
[1754577535751,5.1865,3828.4,3828.2,2.61218521]
[1754577535964,4.228,3828.3,3828.2,2.61218521]
[1754577536472,4.228,3828.3,3828.2,2.61219372]
[1754577536655,0.4868,3828.9,3828.2,2.61219372]
[1754577536857,6.03400824,3828.8,3828.4,0.1304]
[1754577537058,0.9585,3828.7,3828.4,0.1304]
[1754577537271,0.0196714,3828.6,3828.4,0.1304]
[1754577537475,0.4868,3828.5,3828.4,0.1304]
[1754577537770,0.4868,3828.5,3828.2,2.61217686]
[1754577537974,4.227,3828.4,3828.2,0.1304]
[1754577538581,4.227,3828.4,3828.1,0.1314]
[1754577538582,4.6629,3828.4,3828.1,0.1314]
[1754577538743,0.9322,3828.3,3828.1,0.1314]
[1754577539077,0.9322,3828.3,3828.1,2.74366015]
[1754577539236,4.226,3828.2,3828.1,2.74366015]
[1754577539570,4.226,3828.2,3828.1,0.1314]
[1754577540270,7.27409372,3828.2,3828.1,0.1314]
[1754577540470,6.14681644,3828.2,3828.1,0.001]
[1754577541778,6.27721644,3828.2,3828.1,0.001]
[1754577543072,2.05121644,3828.2,3828.1,0.001]
[1754577543255,4.8517,3828.2,3828.1,0.001]
[1754577543652,0.4359,3828.6,3828.1,2.61321942]
[1754577543853,7.76923937,3828.5,3828.1,0.1314]
[1754577544039,0.9518714,3828.4,3828.1,0.1314]
[1754577544440,0.9322,3828.3,3828.1,0.1314]
[1754577544662,4.3750714,3828.2,3828.1,0.001]
[1754577545049,0.1304,3828.2,3828.1,0.001]
[1754577545256,4.224,3828.2,3828.1,2.74366195]
[1754577545472,0.1304,3828.6,3828.1,2.74366195]
[1754577545668,4.224,3828.5,3828.2,2.61219006]
[1754577545948,4.224,3828.5,3828.3,2.61212244]
[1754577546370,4.224,3828.5,3828.3,2.61209898]
[1754577546881,0.1304,3828.6,3828.3,2.61209898]
[1754577547177,4.224,3828.5,3828.4,2.74241057]
[1754577547739,14.6304,3829.0,3828.5,2.61196668]
[1754577547962,14.6304,3829.0,3828.4,0.1304]
[1754577547963,0.9322,3828.9,3828.4,0.1304]
[1754577548178,5.1552,3828.8,3828.4,0.1304]
[1754577548476,0.9518714,3828.7,3828.4,0.1304]
[1754577548840,1.0626,3828.6,3828.1,0.1314]
[1754577549046,4.2426714,3828.5,3828.1,0.1314]
[1754577549241,0.9322,3828.4,3828.1,2.74366166]
[1754577549441,0.9322,3828.3,3828.1,0.1314]
[1754577549689,4.223,3828.2,3828.1,0.1314]
[1754577549861,4.223,3828.2,3828.1,2.74366195]
[1754577550047,0.1304,3828.9,3828.1,1.042]
[1754577550249,0.1304,3829.0,3828.7,2.61185113]
[1754577550477,4.223,3828.9,3828.6,2.61190076]
[1754577550674,4.223,3828.9,3828.5,0.1304]
[1754577550675,3.10757971,3829.6,3828.5,0.1304]
[1754577550873,0.1304,3829.3,3829.0,2.61158778]
[1754577551084,0.1304,3829.3,3828.8,0.1304]
[1754577551085,4.222,3829.2,3828.8,0.1304]
[1754577551281,0.6267,3829.3,3828.9,2.61166106]
[1754577551504,4.222,3829.2,3828.9,2.61171615]
[1754577551990,2.61171615,3828.9,3828.8,0.1304]
[1754577552175,2.63138755,3828.9,3828.8,0.1304]
[1754577552354,3.56358755,3828.9,3828.8,0.1304]
[1754577552554,1.0822714,3828.9,3827.8,0.1314]
[1754577552765,19.51359068,3828.8,3828.4,0.1304]
[1754577552978,14.5,3828.8,3828.4,0.1304]
[1754577553183,0.43590001,3829.4,3828.8,2.61178437]
[1754577553347,1e-08,3829.4,3829.3,2.61144334]
[1754577553547,4.22100001,3829.4,3829.3,2.61144334]
[1754577554583,4.22100001,3829.4,3829.2,2.74188923]
[1754577554797,4.22100001,3829.4,3829.2,0.1304]
[1754577554967,0.4963,3829.3,3828.5,3.0]
[1754577555160,0.1304,3829.3,3829.2,2.61151154]
[1754577555573,0.1304,3829.3,3828.9,2.61169263]
[1754577555788,0.9322,3829.2,3828.9,2.61169263]
[1754577555954,0.55,3829.0,3828.8,0.1304]
[1754577556159,2.61219372,3828.2,3827.7,0.001]
[1754577556359,2.61198902,3828.5,3827.7,0.001]
[1754577556583,0.9322,3828.2,3827.7,0.001]
[1754577556780,0.9518714,3828.2,3827.7,2.61353321]
[1754577556956,0.9322,3829.0,3827.9,0.4692]
[1754577557151,2.61179621,3828.8,3828.1,2.61325595]
[1754577557369,6.8317361,3828.9,3828.2,2.61217392]
[1754577557688,17.11178473,3828.8,3828.2,2.61217392]
[1754577557868,17.11178473,3828.8,3828.1,2.61324237]
[1754577558270,14.9963,3828.8,3828.2,2.61217442]
[1754577558510,17.60808619,3828.8,3828.2,2.61217442]
[1754577558804,14.9963,3828.8,3828.1,0.001]
[1754577558968,0.4555714,3828.7,3828.1,0.001]
[1754577559170,4.22,3828.6,3828.1,0.001]
[1754577559507,4.219,3828.6,3828.2,0.9106]
[1754577559806,4.219,3828.6,3828.5,2.61198902]
[1754577560212,4.219,3828.6,3828.2,2.61217344]
[1754577560412,4.219,3828.6,3828.1,0.001]
[1754577560413,0.9322,3828.5,3828.1,0.001]
[1754577560710,4.219,3828.6,3828.2,2.61217967]
[1754577560913,0.93220001,3829.4,3828.3,0.4692]
[1754577561206,6.83044496,3829.3,3828.7,2.6118433]
[1754577561408,3.54359318,3829.4,3828.7,2.6118433]
[1754577561579,0.93220001,3829.4,3828.3,0.4692]
[1754577561907,4.219,3829.3,3828.7,2.61183261]
[1754577562107,5.76222,3829.3,3828.7,2.61183261]
[1754577562309,4.219,3829.3,3828.3,0.4692]
[1754577562509,0.93220001,3829.4,3828.9,2.6116593]
[1754577562822,0.93220001,3829.4,3828.8,2.61173884]
[1754577563110,4.219,3829.3,3828.3,0.4692]
[1754577563316,4.219,3829.3,3828.9,2.61167243]
[1754577563686,4.218,3829.2,3828.6,0.4692]
[1754577563891,1e-08,3829.4,3828.7,2.91994956]
[1754577564092,1e-08,3829.4,3829.3,2.61144334]
[1754577564332,4.21800001,3829.4,3829.3,2.61144334]
[1754577564815,1e-08,3829.4,3829.3,2.61144334]
[1754577564992,4.21800001,3829.4,3829.3,5.61144334]
[1754577565192,4.21800001,3829.4,3829.3,6.48066534]
[1754577565596,4.21800001,3829.4,3829.3,5.61144334]
[1754577565794,5.15020001,3829.4,3828.4,3.0]
[1754577566083,5.15020001,3829.4,3828.2,0.73051797]
[1754577566084,0.1304,3829.3,3828.7,0.1304]
[1754577566403,4.217,3829.2,3829.1,2.74197974]
[1754577566584,4.217,3829.2,3829.1,0.1304]
[1754577566986,4.217,3829.2,3829.1,2.74197974]
[1754577567980,4.217,3829.2,3829.1,0.1304]
[1754577568182,4.217,3829.2,3829.1,2.74197974]
[1754577568391,1e-08,3829.4,3829.1,0.1304]
[1754577568596,4.217,3829.3,3829.2,2.61151154]
[1754577569116,1e-08,3829.4,3829.3,2.61144334]
[1754577569412,1e-08,3829.4,3829.3,6.56785777]
[1754577569619,1e-08,3829.4,3829.3,5.61144334]
[1754577570407,0.45220001,3829.4,3829.3,2.61144334]
[1754577570618,0.45220001,3829.4,3829.2,0.1304]
[1754577570619,1.35252001,3829.4,3829.2,0.1304]
[1754577570918,1.35252001,3829.4,3828.3,0.4907]
[1754577570919,4.3660714,3829.3,3828.1,0.001]
[1754577571122,0.1304,3829.0,3828.5,0.1304]
[1754577571301,0.1304,3828.8,3828.2,0.1304]
[1754577571494,0.0196714,3828.7,3828.2,0.1304]
[1754577571815,0.4522,3828.6,3828.4,2.61204859]
[1754577572020,4.215,3828.5,3828.3,2.61211346]
[1754577572525,4.215,3828.5,3828.4,2.61205725]
[1754577572693,4.215,3828.5,3828.3,2.6121034]
[1754577572896,4.215,3828.5,3828.3,2.61212548]
[1754577573797,4.215,3828.5,3828.2,2.74258906]
[1754577573998,4.215,3828.5,3828.4,2.61205725]
[1754577574193,4.215,3828.5,3828.2,2.74258906]
[1754577574194,4.215,3828.5,3828.3,2.61210575]
[1754577574405,4.215,3828.5,3828.4,2.61205725]
[1754577575425,4.215,3828.5,3828.2,0.1304]
[1754577575595,4.215,3828.5,3828.3,2.61211152]
[1754577576106,4.215,3828.5,3828.2,0.1304]
[1754577576107,4.215,3828.5,3828.4,2.61205725]
[1754577576426,4.215,3828.5,3828.2,0.1304]
[1754577576605,4.215,3828.5,3828.2,2.74252555]
[1754577576806,4.215,3828.5,3828.2,0.1304]
[1754577577004,0.8857,3828.4,3828.2,0.1304]
[1754577577210,0.8857,3828.4,3828.1,2.61321389]
[1754577577416,0.8857,3828.4,3828.2,2.61219209]
[1754577577610,0.8857,3828.4,3828.1,2.61324317]
[1754577577806,0.8857,3828.4,3828.2,2.61218546]
[1754577578010,0.8857,3828.4,3828.3,2.61212548]
[1754577578333,14.5,3829.2,3828.5,2.61195835]
[1754577578628,0.1304,3828.7,3828.6,2.6119208]
[1754577578811,4.3444,3828.7,3828.6,2.6119208]
[1754577579012,4.213,3828.7,3828.5,0.1304]
[1754577579212,4.213,3828.7,3828.6,2.6119208]
[1754577580020,4.213,3828.7,3828.6,0.1304]
[1754577580206,4.213,3828.7,3828.6,2.7423208]
[1754577580604,0.4522,3829.1,3828.6,2.74231164]
[1754577580829,4.213,3829.0,3828.8,2.61174102]
[1754577581034,4.213,3829.0,3828.8,0.1304]
[1754577581235,4.213,3828.9,3828.8,0.1304]
[1754577581416,4.213,3828.9,3828.8,2.74218437]
[1754577581941,4.213,3828.9,3828.8,0.1304]
[1754577582325,4.213,3828.9,3828.8,2.74218437]
[1754577582635,4.6652,3828.9,3828.8,0.1304]
[1754577582833,4.6652,3828.9,3828.8,2.74218437]
[1754577583135,4.6652,3828.9,3828.8,0.1304]
[1754577583437,4.6652,3828.9,3828.1,3.05282482]
[1754577583438,5.60757,3828.9,3828.1,0.001]
[1754577583614,1.0161,3828.8,3828.4,2.61201214]
[1754577583812,0.8857,3828.7,3828.3,2.74249434]
[1754577584014,5.0977,3828.6,3828.4,2.61201]
[1754577584215,5.0977,3828.6,3828.2,2.74259372]
[1754577584804,5.0977,3828.6,3828.5,2.61198902]
[1754577584999,4.212,3828.6,3828.5,2.74238902]
[1754577585245,0.002,3829.3,3829.0,2.61164794]
[1754577585536,5.0977,3829.2,3828.9,2.61169603]
[1754577585734,0.8857,3829.1,3828.9,2.61169603]
[1754577586047,0.4335,3829.0,3828.1,0.001]
[1754577586200,0.4335,3829.0,3828.6,0.1304]
[1754577586201,4.2306714,3828.9,3828.6,0.1304]
[1754577586406,0.8857,3828.8,3828.7,2.61184394]
[1754577586828,0.4522,3829.1,3828.9,2.61171562]
[1754577587029,4.211,3829.0,3828.9,2.61171562]
[1754577587218,4.211,3829.0,3828.9,2.74211562]
[1754577587817,0.002,3829.3,3829.2,2.61151154]
[1754577588022,4.213,3829.3,3829.2,2.74191154]
[1754577588716,0.002,3829.3,3829.2,2.74191154]
[1754577588916,0.002,3829.3,3829.2,3.76796749]
[1754577588917,4.212,3829.3,3829.2,3.76796749]
[1754577590139,0.002,3829.3,3829.2,3.76796749]
[1754577590344,4.212,3829.3,3829.2,3.76796749]
[1754577590552,4.212,3829.3,3829.2,2.74191154]
[1754577590752,0.002,3829.3,3829.2,6.23261154]
[1754577590936,0.002,3829.3,3829.2,6.67221154]
[1754577592854,0.002,3829.3,3829.2,6.23261154]
[1754577595036,0.002,3829.3,3829.2,5.74191154]
[1754577600642,0.9319,3829.3,3829.2,5.74191154]
[1754577600831,0.002,3829.3,3829.2,5.74191154]
[1754577601845,0.002,3829.3,3829.2,6.20851154]
[1754577602935,0.002,3829.3,3829.2,7.51112749]
[1754577603154,0.002,3829.3,3829.2,7.96092749]
[1754577603728,0.002,3829.3,3829.2,7.51112749]
[1754577603930,0.002,3829.7,3829.6,2.61123877]
[1754577604376,0.002,3829.7,3829.6,2.74163877]
[1754577604744,0.9319,3829.7,3829.6,0.1304]
[1754577604944,0.9319,3829.7,3829.6,2.74163877]
[1754577605869,0.478,3829.7,3829.6,2.74163877]
[1754577606032,0.002,3829.7,3829.6,2.74163877]
[1754577606474,0.9319,3829.7,3829.6,2.74163877]
[1754577607175,0.002,3829.7,3829.6,2.74163877]
[1754577607361,0.478,3829.7,3829.6,2.74163877]
[1754577607561,0.9319,3829.7,3829.6,2.74163877]
[1754577608061,0.9319,3829.7,3829.6,0.1304]
[1754577608272,1.44569,3829.7,3829.6,0.1304]
[1754577608991,2.61128393,3829.6,3829.0,0.1304]
[1754577609293,0.9299,3829.6,3829.0,0.1304]
[1754577609592,18.703,3829.5,3829.3,2.74183272]
[1754577609922,0.9299,3829.4,3829.3,0.1304]
[1754577610097,0.9299,3829.4,3829.3,2.74184334]
[1754577610257,4.202,3829.4,3829.3,2.74184334]
[1754577610458,0.4559,3829.7,3829.6,2.61123877]
[1754577610459,0.9319,3829.7,3829.6,2.61123877]
[1754577610684,5.1339,3829.7,3829.5,2.61128758]
[1754577610990,5.1339,3829.7,3829.6,2.61123877]
[1754577612180,0.002,3829.7,3829.6,2.61123877]
[1754577613407,0.002,3829.7,3829.6,3.14653808]
[1754577613715,0.002,3829.7,3829.6,2.61123877]
[1754577614699,0.002,3829.7,3829.6,3.07783877]
[1754577614893,0.002,3829.7,3829.6,3.52763877]
[1754577615296,0.002,3829.7,3829.6,3.07783877]
[1754577615510,0.476,3831.6,3829.7,23.63623858]
[1754577615709,4.6549,3831.5,3831.3,0.1304]
[1754577616016,4.6549,3831.5,3831.4,2.610012]
[1754577616017,4.75591447,3831.5,3831.4,2.610012]
[1754577616218,4.201,3831.5,3831.4,2.740412]
[1754577616882,1.03091447,3831.8,3831.7,2.60980765]
[1754577617081,0.55491447,3831.8,3831.7,2.60980765]
[1754577617286,1.44125294,3832.5,3831.7,2.60980765]
[1754577617287,4.2,3832.4,3832.3,2.60939905]
[1754577617497,4.676,3832.4,3832.3,2.60939905]
[1754577617692,4.676,3832.4,3832.3,2.73979905]
[1754577617929,5.1495714,3832.4,3832.3,0.1304]
[1754577618129,5.1299,3832.4,3832.3,0.1304]
[1754577618285,5.79364669,3832.4,3831.7,0.1961664]
[1754577618605,0.9299,3832.3,3832.1,2.60952018]
[1754577618808,4.84407529,3832.4,3832.2,2.60946443]
[1754577619010,4.84407529,3832.4,3832.0,0.1304]
[1754577619011,5.29797529,3832.4,3832.3,2.60939905]
[1754577619213,5.29797529,3832.4,3832.3,0.1304]
[1754577619597,5.77397529,3832.4,3832.3,2.73979905]
[1754577619798,4.84407529,3832.4,3832.3,2.73979905]
[1754577620012,4.2,3832.4,3832.3,0.1304]
[1754577620324,5.1495714,3832.4,3832.3,0.1304]
[1754577620622,5.1495714,3832.4,3831.7,2.80908192]
[1754577620823,1.70578352,3832.3,3832.0,0.1304]
[1754577620987,0.0196714,3832.2,3832.0,0.1304]
[1754577621204,0.0196714,3832.2,3831.0,4.198]
[1754577621205,0.9299,3832.1,3831.0,4.198]
[1754577621407,0.9299,3832.1,3831.8,0.1304]
[1754577621408,0.59254549,3832.1,3831.8,0.1304]
[1754577621610,0.9299,3832.0,3831.2,0.4666]
[1754577621830,0.9299,3832.0,3831.6,2.60983984]
[1754577622026,0.9299,3831.9,3831.5,2.60989019]
[1754577622342,1.46432854,3831.8,3830.9,4.39420737]
[1754577622502,5.1279,3831.7,3831.3,0.1304]
[1754577622831,2.60995518,3831.5,3831.1,0.1304]
[1754577623030,0.1500714,3831.6,3831.1,0.1304]
[1754577623031,0.80846406,3831.4,3831.1,0.1304]
[1754577623233,5.1269,3831.3,3830.8,2.61037006]
[1754577623548,0.9495714,3831.2,3830.1,0.4666]
[1754577623729,0.0196714,3831.2,3830.8,0.1304]
[1754577623906,0.0196714,3831.2,3830.8,2.74078665]
[1754577623907,0.9299,3831.1,3830.8,2.74078665]
[1754577624238,0.9299,3831.0,3830.8,2.74078665]
[1754577624437,4.196,3830.9,3830.8,2.74081829]
[1754577625112,4.196,3830.9,3830.8,2.61041829]
[1754577625314,4.196,3830.9,3830.8,2.74082079]
[1754577625507,5.5455,3830.9,3829.6,3.06103184]
[1754577625852,0.9495714,3830.8,3830.5,0.1304]
[1754577626056,0.55651714,3830.7,3830.5,2.74101967]
[1754577626267,0.55651714,3830.7,3830.5,0.1304]
[1754577626423,1.48641714,3830.7,3830.5,2.74101409]
[1754577626626,1.01041714,3830.7,3830.5,0.1304]
[1754577626940,0.9299,3830.6,3830.3,0.1304]
[1754577627111,4.196,3830.5,3830.3,0.1304]
[1754577627313,5.1455714,3830.5,3829.6,0.4666]
[1754577627625,0.476,3830.4,3830.2,2.61081692]
[1754577627932,4.195,3830.3,3830.2,2.61082972]
[1754577628132,0.476,3830.8,3830.6,0.1304]
[1754577628443,4.195,3830.7,3830.6,2.74095709]
[1754577628646,4.195,3830.7,3830.6,0.1304]
[1754577628844,5.1296,3830.7,3830.6,0.1304]
[1754577629048,5.90359745,3830.7,3829.6,0.64936677]
[1754577629249,5.09939745,3830.7,3830.1,0.1304]
[1754577629453,0.9346,3830.6,3830.1,0.1304]
[1754577629649,0.9346,3830.5,3830.1,0.1304]
[1754577630252,5.44069745,3830.7,3829.8,0.001]
[1754577630422,5.1296,3830.7,3829.8,0.001]
[1754577630613,0.9542714,3830.6,3830.1,2.61089133]
[1754577630834,0.0196714,3830.6,3830.1,2.61089133]